Workbook

Sheet Dagontvangsten
B2: DAGONTVANGSTEN
D4: KAREN | G4: KATHELIJN
D5: Kostprijs | G5: Kostprijs
A6: maand | B6: datum | C6: omschrijving | D6: Behandeling | E6: Producten | F6: Inlevering cadeaubon | G6: Behandeling2 | H6: Producten3 | I6: Inlevering cadeaubon4
A7: =Tabel2[[#This Row],[datum]] -> 2023-04-29 | B7: 2023-04-29 | C7: pedicure | G7: 25
A8: =Tabel2[[#This Row],[datum]] -> 2023-04-29 | B8: 2023-04-29 | C8: pedicure | G8: 25
A9: =Tabel2[[#This Row],[datum]] -> 2023-04-29 | B9: 2023-04-29 | C9: pedicure | G9: 25
A10: =Tabel2[[#This Row],[datum]] -> 2023-04-29 | B10: 2023-04-29 | C10: epilatie wenkbrauwen | G10: 11
A11: =Tabel2[[#This Row],[datum]] -> 2023-04-29 | B11: 2023-04-29 | C11: pedicure | G11: 25
A12: =Tabel2[[#This Row],[datum]] -> 2023-04-29 | B12: 2023-04-29 | C12: epilatie oksels | G12: 14
A13: =Tabel2[[#This Row],[datum]] -> 2023-04-29 | B13: 2023-04-29 | C13: pedicure | G13: 25
A14: =Tabel2[[#This Row],[datum]] -> 2023-04-29 | B14: 2023-04-29 | C14: luxe microdermabrasie + epilatie | G14: 106.5
A15: =Tabel2[[#This Row],[datum]] -> 2023-04-29 | B15: 2023-04-29 | C15: pedicure + gellak | G15: 47
A16: =Tabel2[[#This Row],[datum]] -> 2023-04-29 | B16: 2023-04-29 | C16: pedicure | G16: 25
A17: =Tabel2[[#This Row],[datum]] -> 2023-04-26 | B17: 2023-04-26 | C17: rim ram | D17: 73.5
A18: =Tabel2[[#This Row],[datum]] -> 2023-04-26 | B18: 2023-04-26 | C18: rim ram | D18: 131
A19: =Tabel2[[#This Row],[datum]] -> 2023-04-26 | B19: 2023-04-26 | C19: rim ram | D19: 69
A20: =Tabel2[[#This Row],[datum]] -> 2023-04-26 | B20: 2023-04-26 | C20: rim ram | D20: 33
A21: =Tabel2[[#This Row],[datum]] -> 2023-04-26 | B21: 2023-04-26 | C21: pedicure + gellak | D21: 47
A22: =Tabel2[[#This Row],[datum]] -> 2023-04-26 | B22: 2023-04-26 | C22: gelnagels | D22: 38.5
A23: =Tabel2[[#This Row],[datum]] -> 2023-04-22 | B23: 2023-04-22 | C23: oksels | D23: 14
A24: =Tabel2[[#This Row],[datum]] -> 2023-04-22 | B24: 2023-04-22 | C24: gelnagels | D24: 38.5
A25: =Tabel2[[#This Row],[datum]] -> 2023-04-22 | B25: 2023-04-22 | C25: rim ram | D25: 177
A26: =Tabel2[[#This Row],[datum]] -> 2023-04-22 | B26: 2023-04-22 | C26: pedicure + gellak | D26: 47
A27: =Tabel2[[#This Row],[datum]] -> 2023-04-22 | B27: 2023-04-22 | C27: pedicure | D27: 25
A28: =Tabel2[[#This Row],[datum]] -> 2023-04-21 | B28: 2023-04-21 | C28: rim ram | D28: 45
A29: =Tabel2[[#This Row],[datum]] -> 2023-04-21 | B29: 2023-04-21 | C29: pedicure + gellak | D29: 47
A30: =Tabel2[[#This Row],[datum]] -> 2023-04-21 | B30: 2023-04-21 | C30: pedicure | D30: 25
A31: =Tabel2[[#This Row],[datum]] -> 2023-04-21 | B31: 2023-04-21 | C31: gelnagels | D31: 38.5
A32: =Tabel2[[#This Row],[datum]] -> 2023-04-21 | B32: 2023-04-21 | C32: gelnagels | D32: 38.5
A33: =Tabel2[[#This Row],[datum]] -> 2023-04-19 | B33: 2023-04-19 | C33: rim ram | D33: 23
A34: =Tabel2[[#This Row],[datum]] -> 2023-04-19 | B34: 2023-04-19 | C34: gelnagels | D34: 38.5
A35: =Tabel2[[#This Row],[datum]] -> 2023-04-19 | B35: 2023-04-19 | C35: gellak | D35: 28.5
A36: =Tabel2[[#This Row],[datum]] -> 2023-04-19 | B36: 2023-04-19 | C36: rim ram | D36: 58
A37: =Tabel2[[#This Row],[datum]] -> 2023-04-19 | B37: 2023-04-19 | C37: rim ram | D37: 45.5
A38: =Tabel2[[#This Row],[datum]] -> 2023-04-19 | B38: 2023-04-19 | C38: inleveren cadeaubon | F38: 60
A39: =Tabel2[[#This Row],[datum]] -> 2023-04-19 | B39: 2023-04-19 | C39: verkoop | E39: 42
A40: =Tabel2[[#This Row],[datum]] -> 2023-04-19 | B40: 2023-04-19 | C40: rim ram | D40: 55
A41: =Tabel2[[#This Row],[datum]] -> 2023-04-15 | B41: 2023-04-15 | C41: rim ram | D41: 171
A42: =Tabel2[[#This Row],[datum]] -> 2023-04-15 | B42: 2023-04-15 | C42: pedicure | D42: 25
A43: =Tabel2[[#This Row],[datum]] -> 2023-04-15 | B43: 2023-04-15 | C43: gelnagels | D43: 38.5
A44: =Tabel2[[#This Row],[datum]] -> 2023-04-15 | B44: 2023-04-15 | C44: rim ram | D44: 71
A45: =Tabel2[[#This Row],[datum]] -> 2023-04-15 | B45: 2023-04-15 | C45: massage rug | G45: 35
A46: =Tabel2[[#This Row],[datum]] -> 2023-04-15 | B46: 2023-04-15 | C46: gelaatsverzorging | G46: 50
A47: =Tabel2[[#This Row],[datum]] -> 2023-04-15 | B47: 2023-04-15 | C47: epilatie bovenlip | G47: 11.5
A48: =Tabel2[[#This Row],[datum]] -> 2023-04-15 | B48: 2023-04-15 | C48: pedicure | G48: 25
A49: =Tabel2[[#This Row],[datum]] -> 2023-04-15 | B49: 2023-04-15 | C49: gelaatsverzorging + microdermabrasie | G49: 65
A50: =Tabel2[[#This Row],[datum]] -> 2023-04-15 | B50: 2023-04-15 | C50: kleuren wenkbrauw | G50: 12
A51: =Tabel2[[#This Row],[datum]] -> 2023-04-15 | B51: 2023-04-15 | C51: pedicure | G51: 25
A52: =Tabel2[[#This Row],[datum]] -> 2023-04-15 | B52: 2023-04-15 | C52: pedicure | G52: 25
A53: =Tabel2[[#This Row],[datum]] -> 2023-04-15 | B53: 2023-04-15 | C53: epilatie wenkbrauwen | G53: 11
A54: =Tabel2[[#This Row],[datum]] -> 2023-04-15 | B54: 2023-04-15 | C54: epilatie bovenlip | G54: 11.5
A55: =Tabel2[[#This Row],[datum]] -> 2023-04-15 | B55: 2023-04-15 | C55: epilatie oksels | G55: 14
A56: =Tabel2[[#This Row],[datum]] -> 2023-04-15 | B56: 2023-04-15 | C56: gelaatsverzorging | G56: 50
A57: =Tabel2[[#This Row],[datum]] -> 2023-04-15 | B57: 2023-04-15 | C57: epilatie bovenlip | G57: 11.5
A58: =Tabel2[[#This Row],[datum]] -> 2023-04-15 | B58: 2023-04-15 | C58: gelaatsverzorging | G58: 50
A59: =Tabel2[[#This Row],[datum]] -> 2023-04-15 | B59: 2023-04-15 | C59: epilatie bovenlip | G59: 11.5
A60: =Tabel2[[#This Row],[datum]] -> 2023-04-15 | B60: 2023-04-15 | C60: pedicure | G60: 25
A61: =Tabel2[[#This Row],[datum]] -> 2023-04-14 | B61: 2023-04-14 | C61: verkoop | E61: 55
A62: =Tabel2[[#This Row],[datum]] -> 2023-04-14 | B62: 2023-04-14 | C62: rim ram | D62: 59
A63: =Tabel2[[#This Row],[datum]] -> 2023-04-12 | B63: 2023-04-12 | C63: cadeaubon | D63: 50
A64: =Tabel2[[#This Row],[datum]] -> 2023-04-12 | B64: 2023-04-12 | C64: gelnagels | D64: 38.5
A65: =Tabel2[[#This Row],[datum]] -> 2023-04-12 | B65: 2023-04-12 | C65: gelnagels | D65: 38.5
A66: =Tabel2[[#This Row],[datum]] -> 2023-04-12 | B66: 2023-04-12 | C66: rim ram | D66: 84.5
A67: =Tabel2[[#This Row],[datum]] -> 2023-04-12 | B67: 2023-04-12 | C67: pedicure + gellak | D67: 47
A68: =Tabel2[[#This Row],[datum]] -> 2023-04-12 | B68: 2023-04-12 | C68: gelnagels | D68: 38.5
A69: =Tabel2[[#This Row],[datum]] -> 2023-04-12 | B69: 2023-04-12 | C69: pedicure | D69: 25
A70: =Tabel2[[#This Row],[datum]] -> 2023-04-12 | B70: 2023-04-12 | C70: rim ram | D70: 29
A71: =Tabel2[[#This Row],[datum]] -> 2023-04-12 | B71: 2023-04-12 | C71: pedicure | D71: 25
A72: =Tabel2[[#This Row],[datum]] -> 2023-04-08 | B72: 2023-04-08 | C72: massage rug | G72: 35
A73: =Tabel2[[#This Row],[datum]] -> 2023-04-08 | B73: 2023-04-08 | C73: epilatie wenkbrauwen | G73: 11
A74: =Tabel2[[#This Row],[datum]] -> 2023-04-08 | B74: 2023-04-08 | C74: pedicure | G74: 25
A75: =Tabel2[[#This Row],[datum]] -> 2023-04-08 | B75: 2023-04-08 | C75: gelaatsverzorging | G75: 50
A76: =Tabel2[[#This Row],[datum]] -> 2023-04-08 | B76: 2023-04-08 | C76: gelaatsverzorging + microdermabrasie | G76: 65
A77: =Tabel2[[#This Row],[datum]] -> 2023-04-08 | B77: 2023-04-08 | C77: pedicure | G77: 25
A78: =Tabel2[[#This Row],[datum]] -> 2023-04-08 | B78: 2023-04-08 | C78: pedicure | G78: 25
A79: =Tabel2[[#This Row],[datum]] -> 2023-04-08 | B79: 2023-04-08 | C79: pedicure | G79: 25
A80: =Tabel2[[#This Row],[datum]] -> 2023-04-08 | B80: 2023-04-08 | C80: pedicure + gellak | G80: 47
A81: =Tabel2[[#This Row],[datum]] -> 2023-04-08 | B81: 2023-04-08 | C81: verkoop | H81: 55
A82: =Tabel2[[#This Row],[datum]] -> 2023-04-01 | B82: 2023-04-01 | C82: rim ram | D82: 108
A83: =Tabel2[[#This Row],[datum]] -> 2023-04-01 | B83: 2023-04-01 | C83: rim ram | D83: 45
A84: =Tabel2[[#This Row],[datum]] -> 2023-04-01 | B84: 2023-04-01 | C84: rim ram | D84: 36.5
A85: =Tabel2[[#This Row],[datum]] -> 2023-04-01 | B85: 2023-04-01 | C85: gellak | G85: 28.5
A86: =Tabel2[[#This Row],[datum]] -> 2023-04-01 | B86: 2023-04-01 | C86: pedicure | G86: 25
A87: =Tabel2[[#This Row],[datum]] -> 2023-04-01 | B87: 2023-04-01 | C87: massage rug | G87: 35
A88: =Tabel2[[#This Row],[datum]] -> 2023-04-01 | B88: 2023-04-01 | C88: pedicure | G88: 25
A89: =Tabel2[[#This Row],[datum]] -> 2023-04-01 | B89: 2023-04-01 | C89: epilatie wenkbrauwen | G89: 11
A90: =Tabel2[[#This Row],[datum]] -> 2023-04-01 | B90: 2023-04-01 | C90: gelaatsverzorging | G90: 50
A91: =Tabel2[[#This Row],[datum]] -> 2023-04-01 | B91: 2023-04-01 | C91: massage rug | G91: 35
A92: =Tabel2[[#This Row],[datum]] -> 2023-04-01 | B92: 2023-04-01 | C92: pedicure | G92: 25
A93: =Tabel2[[#This Row],[datum]] -> 2023-04-01 | B93: 2023-04-01 | C93: epilatie wenkbrauwen + bovenlip | G93: 22.5
A94: 2023-05-23 | B94: 2023-05-03 | C94: gelnagels | D94: 39.5
A95: 2023-05-23 | B95: 2023-05-03 | C95: pedicure + gellak | D95: 50.5
A96: 2023-05-23 | B96: 2023-05-05 | C96: gelnagels | D96: 39.5
A97: 2023-05-23 | B97: 2023-05-05 | C97: gelnagels | D97: 39.5
A98: 2023-05-23 | B98: 2023-05-05 | C98: gelnagels | D98: 39.5
A99: 2023-05-23 | B99: 2023-05-05 | C99: verkoop | E99: 21
A100: 2023-05-23 | B100: 2023-05-05 | C100: rim ram | D100: 53.5
A101: 2023-05-23 | B101: 2023-05-06 | C101: verkoop | E101: 21

Sheet Omzet 2023
C3: Omzet | D3: 2023
C6: =DATE($D$3,COLUMN(A1),1) -> 2023-01-01 | D6: =DATE($D$3,COLUMN(B1),1) -> 2023-02-01 | E6: 2023-03-01 | F6: 2023-04-01 | G6: 2023-05-01 | H6: 2023-06-01 | I6: 2023-07-01 | J6: 2023-08-01 | K6: 2023-09-01 | L6: 2023-10-01 | M6: 2023-11-01 | N6: 2023-12-01 | O6: SOM
B8: Behandelingen | C8: 1618.5 | D8: 1975.5 | E8: ='Dagontvangsten Maart 23 '!C83 -> 1646 | F8: ='Dagontvangsten April 23'!C96 -> 2066 | G8: =SUMIFS(Tabel2[Behandeling],Tabel2[datum],">="&'Omzet 2023'!G6,Tabel2[datum],"<"&'Omzet 2023'!H6)+SUMIFS(Tabel2[Behandeling2],Tabel2[datum],">="&'Omzet 2023'!G6,Tabel2[datum],"<"&'Omzet 2023'!H6) -> 262 | H8: =SUMIFS(Tabel2[Behandeling],Tabel2[datum],">="&'Omzet 2023'!H6,Tabel2[datum],"<"&'Omzet 2023'!I6)+SUMIFS(Tabel2[Behandeling2],Tabel2[datum],">="&'Omzet 2023'!H6,Tabel2[datum],"<"&'Omzet 2023'!I6) -> 0 | I8: =SUMIFS(Tabel2[Behandeling],Tabel2[datum],">="&'Omzet 2023'!I6,Tabel2[datum],"<"&'Omzet 2023'!J6)+SUMIFS(Tabel2[Behandeling2],Tabel2[datum],">="&'Omzet 2023'!I6,Tabel2[datum],"<"&'Omzet 2023'!J6) -> 0 | J8: =SUMIFS(Tabel2[Behandeling],Tabel2[datum],">="&'Omzet 2023'!J6,Tabel2[datum],"<"&'Omzet 2023'!K6)+SUMIFS(Tabel2[Behandeling2],Tabel2[datum],">="&'Omzet 2023'!J6,Tabel2[datum],"<"&'Omzet 2023'!K6) -> 0 | K8: =SUMIFS(Tabel2[Behandeling],Tabel2[datum],">="&'Omzet 2023'!K6,Tabel2[datum],"<"&'Omzet 2023'!L6)+SUMIFS(Tabel2[Behandeling2],Tabel2[datum],">="&'Omzet 2023'!K6,Tabel2[datum],"<"&'Omzet 2023'!L6) -> 0 | L8: =SUMIFS(Tabel2[Behandeling],Tabel2[datum],">="&'Omzet 2023'!L6,Tabel2[datum],"<"&'Omzet 2023'!M6)+SUMIFS(Tabel2[Behandeling2],Tabel2[datum],">="&'Omzet 2023'!L6,Tabel2[datum],"<"&'Omzet 2023'!M6) -> 0 | M8: =SUMIFS(Tabel2[Behandeling],Tabel2[datum],">="&'Omzet 2023'!M6,Tabel2[datum],"<"&'Omzet 2023'!N6)+SUMIFS(Tabel2[Behandeling2],Tabel2[datum],">="&'Omzet 2023'!M6,Tabel2[datum],"<"&'Omzet 2023'!N6) -> 0 | O8: =SUM(C8:N8) -> 7568
B9: Verkoop producten | C9: 352 | D9: 273 | E9: ='Dagontvangsten Maart 23 '!D83 -> 377 | F9: ='Dagontvangsten April 23'!D96 -> 97 | O9: =SUM(C9:N9) -> 1099
B11: Kathelijn factuurbedrag | C11: 281.15 | D11: 509.41 | E11: 483.22 | F11: 870.48 | O11: =SUM(C11:N11) -> 2144.26
B12: Kathelijn behandelingen (100%) | C12: 432.53 | D12: 771.01 | E12: ='Dagontvangsten Maart 23 '!F83 -> 715 | F12: ='Dagontvangsten April 23'!F96 -> 1326.5 | G12: =SUMIFS(Tabel2[Behandeling2],Tabel2[datum],">="&'Omzet 2023'!G6,Tabel2[datum],"<"&'Omzet 2023'!H6) -> 0 | M12: =SUMIFS(Tabel2[Behandeling2],Tabel2[datum],">="&'Omzet 2023'!M6,Tabel2[datum],"<"&'Omzet 2023'!N6) -> 0 | O12: =SUM(C12:N12) -> 3245.04
B13: Kathelijn verkoop producten (100%) | D13: 55 | E13: ='Dagontvangsten Maart 23 '!G83 -> 122.5 | F13: ='Dagontvangsten April 23'!G96 -> 55
B14: Verschil | C14: =C12-C11-C13 -> 151.38 | D14: =D12-D11-D13 -> 206.6 | E14: 109.28 | F14: 401.02 | G14: =G12+G13-G11 -> 0 | H14: 0 | I14: 0 | J14: 0 | K14: 0 | L14: 0 | N14: 0 | O14: =SUM(C14:N14) -> 868.28
B16: Maandelijks totaal | C16: =C8+C9+C12+C13 -> 2403.03 | D16: =D8+D9+D12+D13 -> 3074.51 | E16: 2860.5 | F16: 3544.5 | G16: 262 | H16: 0 | I16: 0 | J16: 0 | K16: 0 | L16: 0 | M16: 0 | N16: 0
B18: Totaal | C18: =C16 -> 2403.03 | D18: =C18+D16 -> 5477.54 | E18: =D18+E16 -> 8338.04 | F18: 11882.54 | G18: 12144.54 | H18: 12144.54 | I18: 12144.54 | J18: 12144.54 | K18: 12144.54 | L18: 12144.54 | M18: 12144.54 | N18: 12144.54 | O18: =N18 -> 12144.54
H19: =IF(H8>0,H12/H8,"") -> 
B21: Overige | E21: 1005 | F21: 1050
B22: Totaal | E22: =E18+E21 -> 9343.04 | F22: =F18+F21 -> 12932.54 | G22: =F22+G21 -> 12932.54 | H22: =G22+H21 -> 12932.54 | I22: 12932.54 | J22: 12932.54 | K22: 12932.54 | L22: 12932.54 | M22: 12932.54 | N22: 12932.54 | O22: =N22 -> 12932.54
B28: Kathelijn -> 65% behandelingen en 15% verkoop producten.
B31: Totaal = behandelingen + verkoop producten + Kathelijn behandelingen + Kathelijn verkoop producten

Sheet Data
A1: omschrijving | D1: namen | F1: producten
A2: cadeaubon | D2: Karen | F2: handcreme | G2: 21.5
A3: epilatie bovenlip | B3: 13.5 | D3: Kathelijn | F3: bodycreme | G3: 21
A4: epilatie kin | B4: 13.5 | F4: bodypeeling | G4: 31
A5: epilatie oksels | B5: 15.5 | F5: cadaubon
A6: epilatie wangen | B6: 13.5 | F6: verkoop
A7: epilatie wenkbrauwen | B7: 12.5
A8: gelaatsverzorging basis | B8: 55
A9: gelaatsverzorging mini | B9: 40
A10: gelaatsverzoring luxe | B10: 80
A11: gellak | B11: 30.5
A12: gelnagels | B12: 39.5
A13: gelnagels verlenging | B13: 51.5
A14: make up | B14: 30
A15: manicure | B15: 27.5
A16: manicure + lakken | B16: 38
A17: manicure luxe | B17: 40
A18: manicure luxe + lakken | B18: 38
A19: massage rug en nek | B19: 35
A20: massage volledige lichaam | B20: 65
A21: microdermabrasie basis | B21: 70
A22: microdermabrasie kort | B22: 53
A23: microdermabrasie kuurverzorging | B23: 280
A24: microdermabrasie uitgebreid | B24: 100
A25: ontharing benen volledig | B25: 34
A26: ontharing bikinilijn | B26: 16.5
A27: ontharing bikinilijn volledig | B27: 22
A28: ontharing borstkas | B28: 29.5
A29: ontharing onderbenen/armen | B29: 24
A30: ontharing rug | B30: 29.5
A31: pedicure | B31: 27.5
A32: pedicure + gellak | B32: 50.5
A33: pedicure + lakken | B33: 38
A34: reparatie teennagel | B34: 9.5
A35: verven wimpers / wenkbrauwen | B35: 14
A36: verwenarrangement voeten | B36: 78
A37: rim ram

Sheet samenvatting
B1: Behandeling Karen | C1: Producten Karen | D1: Inlevering cadeau Karen | E1: Behandeling Kathelijn | F1: Producten Kathelijn | G1: Inlevering cadeau Kathelijn
A2: cadeaubon | B2: 50
A3: epilatie bovenlip | E3: 46
A4: epilatie oksels | E4: 28
A5: epilatie wenkbrauwen | E5: 44
A6: epilatie wenkbrauwen + bovenlip | E6: 22.5
A7: gelaatsverzorging | E7: 250
A8: gelaatsverzorging + microdermabrasie | E8: 130
A9: gellak | B9: 28.5 | E9: 28.5
A10: gelnagels | B10: 346.5
A11: inleveren cadeaubon | D11: 60
A12: kleuren wenkbrauw | E12: 12
A13: luxe microdermabrasie + epilatie | E13: 106.5
A14: massage rug | E14: 140
A15: oksels | B15: 14
A16: pedicure | B16: 100 | E16: 425
A17: pedicure | B17: 25
A18: pedicure + gellak | B18: 188 | E18: 94
A19: rim ram | B19: 1314
A20: verkoop | C20: 97 | F20: 55
A21: (leeg)
A22: Eindtotaal | B22: 2066 | C22: 97 | D22: 60 | E22: 1326.5 | F22: 55

Sheet Dagontvangsten Januari 23
A3: 2023-01-01
A4: DAGONTVANGSTEN
C6: KAREN | F6: KATHELIJN
A7: Datum | B7: Omschrijving | C7: Kostprijs | F7: Kostprijs
C8: Behandeling | D8: Producten | E8: Inlevering cadeaubon | F8: Behandeling | G8: Producten | H8: Inlevering cadeaubon
A9: 2023-01-04 | B9: gelnagels | C9: 38.5
B10: rim ram | C10: 71
B11: gelnagels | C11: 38.5
B12: inleveren cadeaubon | E12: 33
B13: gelnagels | C13: 38.5
B14: verkoop | D14: 42
A15: 2023-01-06 | B15: verkoop | D15: 14
A16: 2023-01-07 | B16: rim ram | C16: 86.5
B17: rim ram | C17: 45
B18: verkoop | D18: 21
B19: inleveren cadeaubon | E19: 32
A20: 2023-01-11 | B20: gellak | C20: 28.5
B21: pedicure | C21: 25
B22: pedicure | C22: 25
B23: rim ram | C23: 108
B24: gelnagels | C24: 38.5
A25: 2023-01-13 | B25: gelnagels | C25: 40.5
B26: rim ram | C26: 68.5
B27: rim ram | C27: 70
B28: gelnagels | C28: 38.5
B29: rim ram | C29: 59
B30: pedicure | C30: 25
B31: gelnagels | C31: 38.5
B32: gelnagels | C32: 38.5
A33: 2023-01-18 | B33: rim ram | C33: 58
B34: verkoop | D34: 56.5
B35: pedicure | C35: 25
B36: gelnagels | C36: 38.5
A37: 2023-01-20 | B37: rim ram | C37: 91.5
B38: gelnagels | C38: 38.5
B39: verkoop | D39: 14.5
B40: verkoop | D40: 30
A41: 2023-01-21 | B41: verkoop | D41: 54
B42: inleveren cadeaubon | E42: 95
B43: verkoop | D43: 66
B44: rim ram | C44: 60
A45: 2023-01-25 | B45: rim ram | C45: 33
B46: pedicure | C46: 25
B47: pedicure + gellak | C47: 47
B48: rim ram | C48: 29
A49: 2023-01-27 | B49: rim ram | C49: 127
B50: verkoop | D50: 54
B51: rim ram | C51: 61
A52: 2023-01-28 | B52: gelnagels | C52: 38.5
B53: pedicure | C53: 25
B54: inleveren cadeaubon | E54: 35
B56: Behandelingen | F56: 432.53
B59: Subtotaal | C59: =SUM(C9:C58) -> 1618.5 | D59: =SUM(D9:D58) -> 352 | F59: =SUM(F9:F58) -> 432.53 | G59: =SUM(G9:G58) -> 0
B61: Totaal | C61: =SUM(C59+D59+F59+G59) -> 2403.03

Sheet Dagontvangsten Februari 23
A3: 2023-02-01
A4: DAGONTVANGSTEN
C6: KAREN | F6: KATHELIJN
A7: Datum | B7: Omschrijving | C7: Kostprijs | F7: Kostprijs
C8: Behandeling | D8: Producten | E8: Inlevering cadeaubon | F8: Behandeling | G8: Producten | H8: Inlevering cadeaubon
A9: 2023-02-01 | B9: rim ram | C9: 55
A10: 2023-02-03 | B10: gelnagels | C10: 38.5
B11: verkoop | D11: 14.5
B12: verkoop | D12: 47
B13: rim ram | C13: 96
B14: gelnagels | C14: 38.5
A15: 2023-02-04 | B15: rim ram | C15: 36.5
B16: rim ram | C16: 61.5
B17: gelnagels | C17: 38.5
B18: rim ram | C18: 74.5
B19: cadeaubon | C19: 50
B20: rug | C20: 27
B21: pedicure + gellak | F21: 47
B22: ontharing onderbenen | F22: 22
B23: pedicure + gellak | F23: 25
B24: pedicure + epilatie wenkb en bovenlip | F24: 47.5
B25: mini gelaatsverzorging + ped + epilatie | F25: 83
B26: luxe gelaatsverzorging | F26: 95
B27: basis gelaatsverzorging | F27: 50
B28: no-show | F28: 17.5
B29: verkoop | G29: 55
A30: 2023-02-08 | B30: rim ram | C30: 122
B31: gelnagels | C31: 38.5
B32: gelnagels | C32: 38.5
B33: verkoop | D33: 8.5
B34: pedicure | C34: 25
B35: pedicure | C35: 25
A36: 2023-02-10 | B36: gelnagels | C36: 38.5
B37: verkoop | D37: 9.5
B38: verkoop | D38: 24
B39: pedicure | C39: 25
B40: verkoop | D40: 24
B41: pedicure | C41: 25
B42: verwijderen gelnagels | C42: 35
B43: rim ram | C43: 25
A44: 2023-02-11 | B44: pedicure 2x + epilatie en kleuren wenkb | F44: 85
B45: ontharing benen + epilatie wenkb | F45: 42
B46: manicure | F46: 25
B47: pedicure | F47: 25
B48: pedicure | F48: 25
B49: pedicure | F49: 25
A50: 2023-02-16 | B50: verkoop | D50: 40
A51: 2023-02-17 | B51: verkoop | D51: 55
B52: rim ram | C52: 48
B53: rim ram | C53: 34
B54: luxe micro | C54: 95
A55: 2023-02-18 | B55: pedicure | C55: 25
A56: 2023-02-22 | B56: rim ram | C56: 108
B57: rim ram | C57: 79
B58: gelnagels | C58: 38.5
A59: 2023-02-24 | B59: rim ram | C59: 158.5
B60: gelnagels | C60: 38.5
B61: gelnagels | C61: 38.5
A62: 2023-02-25 | B62: inleveren cadeaubon | E62: 22
B63: gelnagels | C63: 38.5
B64: rim ram | C64: 18
B65: gelnagels | C65: 38.5
B66: rim ram | C66: 60
B67: pedicure | F67: 25
B68: pedicure + manicure + lakken | F68: 57
B69: pedicure | F69: 25
B70: pedicure | F70: 25
B71: pedicure | F71: 25
A72: 2023-02-26 | B72: inleveren cadeaubon | E72: 30
B73: pedicure + lakken | C73: 35
B74: rim ram | C74: 59
B75: rim ram | C75: 41
B76: verkoop | D76: 50.5
B77: rim ram | C77: 55
B78: pedicure | C78: 25
B79: rim ram | C79: 29
B84: Subtotaal | C84: =SUM(C9:C83) -> 1975.5 | D84: =SUM(D9:D83) -> 273 | F84: =SUM(F9:F83) -> 771 | G84: =SUM(G9:G83) -> 55
B86: Totaal | C86: =SUM(C84+D84+F84+G84) -> 3074.5

Sheet Dagontvangsten Maart 23
A3: 2023-03-01
A4: DAGONTVANGSTEN
C6: KAREN | F6: KATHELIJN
A7: Datum | B7: Omschrijving | C7: Kostprijs | F7: Kostprijs
C8: Behandeling | D8: Producten | E8: Inlevering cadeaubon | F8: Behandeling | G8: Producten | H8: Inlevering cadeaubon
A9: 2023-03-03 | B9: rim ram | C9: 133.5
B10: gelnagels | C10: 38.5
B11: verkoop | D11: 40
B12: verkoop | D12: 41.5
B13: gelnagels | C13: 38.5
A14: 2023-03-04 | B14: verkoop | D14: 52
B15: verkoop | D15: 50.5
B16: rim ram | C16: 61.5
A17: 2023-03-08 | B17: pedicure | C17: 25
A18: 2023-03-10 | B18: rim ram | C18: 57
B19: rim ram | C19: 67
B20: pedicure + gellak | C20: 47
B21: pedicure | C21: 25
B22: verkoop | D22: 14.5
B23: pedicure | C23: 25
B24: gelnagels | C24: 38.5
A25: 2023-03-11 | B25: rim ram | C25: 36.5
B26: gelaatsverzorging | C26: 50
B27: rim ram | C27: 45
B28: pedicure | F28: 25
B29: luxe gelaatverzorging + microdermabrasie | F29: 95
B30: epilatie wenkbrauw + kleuren | F30: 23
B31: epilatie wenkbrauw | F31: 11
B32: verkoop | G32: 55
B33: verkoop | G33: 50
A34: 2023-03-15 | B34: gelnagels | C34: 38.5
B35: gelnagels | C35: 38.5
B36: gelnagels | C36: 38.5
B37: rim ram | C37: 34
B38: rim ram | C38: 42
A39: 2023-03-17 | B39: pedicure + gellak | C39: 47
B40: gelnagels | C40: 38.5
B41: gelnagels | C41: 38.5
A42: 2023-03-18 | B42: pedicure | F42: 25
B43: epilatie wenkbrauwen + bovenlip | F43: 22.5
B44: pedicure | F44: 25
B45: pedicure | F45: 25
B46: epilatie wenkbrauwen + kleuren | F46: 35
B47: epilatie wenkbrauwen | F47: 11
B48: pedicure | F48: 25
B49: epilatie onderbenen | F49: 22
B50: pedicure | F50: 25
B51: epilatie wenkbrauwen | F51: 11
B52: verkoop | G52: 17.5
A53: 2023-03-22 | B53: pedicure + gellak | C53: 47
B54: oksels | C54: 14
A55: 2023-03-23 | B55: Verkoop | D55: 53.5
A56: 2023-03-24 | B56: gelnagels | C56: 38.5
B57: gelnagels | C57: 38.5
B58: verwijderen gel | C58: 35
B59: verkoop | D59: 45
A60: 2023-03-25 | B60: rim ram | C60: 82
B61: rim ram | C61: 84
B62: mini gelaatsverzorging | F62: 35
B63: kleuren wenkbrauwen | F63: 12
B64: pedicure | F64: 25
B65: pedicure | F65: 25
B66: massage rug | F66: 35
B67: pedicure + gellak | F67: 47
B68: epilatie onderbenen | F68: 22
B69: pedicure + gellak | F69: 47
B70: epilatie wenkbrauwen + bovenlip | F70: 22.5
B71: epilatie oksels | F71: 14
B72: pedicure | F72: 25
B73: pedicure | F73: 25
A74: 2023-03-29 | B74: verkoop | D74: 25
B75: rim ram | C75: 92
B76: rim ram | C76: 33
B77: verkoop | D77: 55
B78: rim ram | C78: 48
A79: 2023-03-31 | B79: gelnagels | C79: 38.5
B80: rim ram | C80: 65
B81: rug | C81: 27
B83: Subtotaal | C83: =SUM(C9:C82) -> 1646 | D83: =SUM(D9:D82) -> 377 | F83: =SUM(F9:F82) -> 715 | G83: =SUM(G9:G82) -> 122.5
B85: Totaal | C85: =SUM(C83+D83+F83+G83) -> 2860.5

Sheet Dagontvangsten April 23
A3: 2023-04-01
A4: DAGONTVANGSTEN
C6: KAREN | F6: KATHELIJN
A7: Datum | B7: Omschrijving | C7: Kostprijs | F7: Kostprijs
C8: Behandeling | D8: Producten | E8: Inlevering cadeaubon | F8: Behandeling | G8: Producten | H8: Inlevering cadeaubon
A9: 2023-04-01 | B9: rim ram | C9: 108
B10: rim ram | C10: 45
B11: rim ram | C11: 36.5
B12: gellak | F12: 28.5
B13: pedicure | F13: 25
B14: massage rug | F14: 35
B15: pedicure | F15: 25
B16: epilatie wenkbrauwen | F16: 11
B17: gelaatsverzorging | F17: 50
B18: massage rug | F18: 35
B19: pedicure | F19: 25
B20: epilatie wenkbrauwen + bovenlip | F20: 22.5
A21: 2023-04-08 | B21: massage rug | F21: 35
B22: epilatie wenkbrauwen | F22: 11
B23: pedicure | F23: 25
B24: gelaatsverzorging | F24: 50
B25: gelaatsverzorging + microdermabrasie | F25: 65
B26: pedicure | F26: 25
B27: pedicure | F27: 25
B28: pedicure | F28: 25
B29: pedicure + gellak | F29: 47
B30: verkoop | G30: 55
A31: 2023-04-12 | B31: cadeaubon | C31: 50
B32: gelnagels | C32: 38.5
B33: gelnagels | C33: 38.5
B34: rim ram | C34: 84.5
B35: pedicure + gellak | C35: 47
B36: gelnagels | C36: 38.5
B37: pedicure | C37: 25
B38: rim ram | C38: 29
B39: pedicure | C39: 25
A40: 2023-04-14 | B40: verkoop | D40: 55
B41: rim ram | C41: 59
A42: 2023-04-15 | B42: rim ram | C42: 171
B43: pedicure | C43: 25
B44: gelnagels | C44: 38.5
B45: rim ram | C45: 71
B46: massage rug | F46: 35
B47: gelaatsverzorging | F47: 50
B48: epilatie bovenlip | F48: 11.5
B49: pedicure | F49: 25
B50: gelaatsverzorging + microdermabrasie | F50: 65
B51: kleuren wenkbrauw | F51: 12
B52: pedicure | F52: 25
B53: pedicure | F53: 25
B54: epilatie wenkbrauwen | F54: 11
B55: epilatie bovenlip | F55: 11.5
B56: epilatie oksels | F56: 14
B57: gelaatsverzorging | F57: 50
B58: epilatie bovenlip | F58: 11.5
B59: gelaatsverzorging | F59: 50
B60: epilatie bovenlip | F60: 11.5
B61: pedicure | F61: 25
A62: 2023-04-19 | B62: rim ram | C62: 23
B63: gelnagels | C63: 38.5
B64: gellak | C64: 28.5
B65: rim ram | C65: 58
B66: rim ram | C66: 45.5
B67: inleveren cadeaubon | E67: 60
B68: verkoop | D68: 42
B69: rim ram | C69: 55
A70: 2023-04-21 | B70: rim ram | C70: 45
B71: pedicure + gellak | C71: 47
B72: pedicure | C72: 25
B73: gelnagels | C73: 38.5
B74: gelnagels | C74: 38.5
A75: 2023-04-22 | B75: oksels | C75: 14
B76: gelnagels | C76: 38.5
B77: rim ram | C77: 177
B78: pedicure + gellak | C78: 47
B79: pedicure | C79: 25
A80: 2023-04-26 | B80: rim ram | C80: 73.5
B81: rim ram | C81: 131
B82: rim ram | C82: 69
B83: rim ram | C83: 33
B84: pedicure + gellak | C84: 47
B85: gelnagels | C85: 38.5
A86: 2023-04-29 | B86: pedicure | F86: 25
B87: pedicure | F87: 25
B88: pedicure | F88: 25
B89: epilatie wenkbrauwen | F89: 11
B90: pedicure | F90: 25
B91: epilatie oksels | F91: 14
B92: pedicure | F92: 25
B93: luxe microdermabrasie + epilatie | F93: 106.5
B94: pedicure + gellak | F94: 47
B95: pedicure | F95: 25
B96: Subtotaal | C96: =SUM(C9:C93) -> 2066 | D96: =SUM(D9:D93) -> 97 | F96: =SUM(F9:F95) -> 1326.5 | G96: =SUM(G9:G93) -> 55
B98: Totaal | C98: =SUM(C96+D96+F96+G96) -> 3544.5

Sheet Blanco sjabloon dagontvansten
A1: 2023-05-01
A2: PURE - DAGONTVANGSTEN
C4: KAREN | F4: KATHELIJN
A5: Datum | B5: Omschrijving | C5: Kostprijs | F5: Kostprijs
C6: Behandeling | D6: Producten | E6: Inlevering cadeaubon | F6: Behandeling | G6: Producten | H6: Inlevering cadeaubon
